Workbook

Sheet Startup
A1: XYZ CHARTER SCHOOL | D1: STARTUP YEAR - PROJECTED CASH FLOW
C2: Object | D2: July | E2: Aug | F2: Sept | G2: Oct | H2: Nov | I2: Dec | J2: Jan | K2: Feb | L2: Mar | M2: Apr | N2: May | O2: June | P2: Sub-total | Q2: Accruals | R2: Total
B3: Actuals through Month of: | C3: N/A
A4: A | B4: Beginning Cash | C4: 9110 | D4: 0 | E4: =D53 -> 0 | F4: =E53 -> 0 | G4: 0 | H4: 0 | I4: 0 | J4: 0 | K4: 0 | L4: 0 | M4: 0 | N4: 0 | O4: 0 | P4: =D4 -> 0
A5: B | B5: Receipts
B6: LCFF Sources
B7: State Aid - Current Year | C7: 8011 | P7: =SUM(D7:O7) -> 0 | R7: =SUM(P7:Q7) -> 0
B8: Education Protection Account | C8: 8012 | P8: =SUM(D8:O8) -> 0 | R8: =SUM(P8:Q8) -> 0
B9: State Aid - Prior Years | C9: 8019 | P9: 0 | R9: 0
B10: Local In Lieu of Prop. Taxes | C10: 8096 | P10: 0 | R10: 0
B11: Federal Revenue (List) | C11: 8100-8299 | P11: 0 | R11: 0
B12: A | P12: =SUM(D12:O12) -> 0 | R12: =SUM(P12:Q12) -> 0
B13: B | P13: 0 | R13: 0
B14: C | P14: 0 | R14: 0
B15: Other State Revenue (List) | C15: 8300-8599 | P15: 0 | R15: 0
B16: A | P16: =SUM(D16:O16) -> 0 | R16: =SUM(P16:Q16) -> 0
B17: B | P17: 0 | R17: 0
B18: C | P18: 0 | R18: 0
B19: Other Local Revenue (List) | C19: 8600-8799 | P19: 0 | R19: 0
B20: A | P20: =SUM(D20:O20) -> 0 | R20: =SUM(P20:Q20) -> 0
B21: B | P21: 0 | R21: 0
B22: C | P22: 0 | R22: 0
B23: Interfund Transfers In | C23: 8910-8929 | P23: 0 | R23: 0
B24: All Other Financing Sources | C24: 8930-8979 | P24: 0 | R24: 0
B25: Other Receipts/Non-Revenue | C25: TRANS | P25: 0 | R25: 0
B26: Total Receipts | D26: =SUM(D7:D25) -> 0 | E26: 0 | F26: 0 | G26: 0 | H26: 0 | I26: 0 | J26: 0 | K26: 0 | L26: 0 | M26: 0 | N26: 0 | O26: 0 | P26: 0 | Q26: 0 | R26: =SUM(P26:Q26) -> 0
A27: C | B27: Disbursements
B28: Certificated Salaries | C28: 1000-1999 | P28: =SUM(D28:O28) -> 0 | R28: =SUM(P28:Q28) -> 0
B29: Classified Salaries | C29: 2000-2999 | P29: =SUM(D29:O29) -> 0 | R29: =SUM(P29:Q29) -> 0
B30: Employee Benefits | C30: 3000-3999 | P30: 0 | R30: 0
B31: Books & Supplies | C31: 4000-4999 | P31: 0 | R31: 0
B32: Services | C32: 5000-5999 | P32: 0 | R32: 0
B33: Capital Outlay | C33: 6000-6599 | P33: 0 | R33: 0
B34: Other Outgo | C34: 7000-7499 | P34: 0 | R34: 0
B35: Interfund Transfers Out | C35: 7600-7629 | P35: 0 | R35: 0
B36: All Other Financing Uses | C36: 7630-7699 | P36: 0 | R36: 0
B37: Other Disbursements/Non-Exp. | P37: 0 | R37: 0
B38: Total Disbursements | D38: =SUM(D28:D37) -> 0 | E38: 0 | F38: 0 | G38: 0 | H38: 0 | I38: 0 | J38: 0 | K38: 0 | L38: 0 | M38: 0 | N38: 0 | O38: 0 | P38: 0 | Q38: 0 | R38: 0
A39: D | B39: Prior Year Transactions | C39: PY Amount
B40: Accounts Receivable-9200 | P40: =SUM(D40:O40) -> 0 | R40: =SUM(P40:Q40) -> 0
B41: Due From Grantor Govts.-9290 | P41: 0 | R41: =SUM(P41:Q41) -> 0
B42: Due From Other Funds-9310 | P42: 0 | R42: 0
B43: Prepaid Expense-9330 | P43: 0 | R43: 0
B44: Accounts Payable-9500 | P44: 0 | R44: 0
B45: Due To Grantor Govts.-9590 | P45: 0 | R45: 0
B46: Due to Other Funds-9610 | P46: 0 | R46: 0
B47: Due to Other Agencies-9620 | P47: 0 | R47: 0
B48: Current Loans/TRANs-9640 | P48: 0 | R48: 0
B49: Deferred Revenue-9650 | P49: 0 | R49: 0
B50: Total Pr. Yr. Transactions | C50: =SUM(C40:C43)-SUM(C44:C49) -> 0 | D50: 0 | E50: 0 | F50: 0 | G50: 0 | H50: 0 | I50: 0 | J50: 0 | K50: 0 | L50: 0 | M50: 0 | N50: 0 | O50: 0 | P50: 0 | Q50: 0 | R50: 0
A51: E | B51: Net Increase/Decrease (B-C+D) | D51: =D26-D38+D50 -> 0 | E51: 0 | F51: 0 | G51: 0 | H51: 0 | I51: 0 | J51: 0 | K51: 0 | L51: 0 | M51: 0 | N51: 0 | O51: 0 | P51: 0 | Q51: 0 | R51: =R26-R38+R50 -> 0
A53: F | B53: Ending Cash (A+E) | D53: =D4+D51 -> 0 | E53: 0 | F53: 0 | G53: 0 | H53: 0 | I53: 0 | J53: 0 | K53: 0 | L53: 0 | M53: 0 | N53: 0 | O53: 0 | P53: 0
A54: G | B54: Ending Cash plus Accruals | R54: =P53+Q51 -> 0

Sheet YEAR 1
A1: XYZ CHARTER SCHOOL | D1: YEAR 1 - PROJECTED CASH FLOW
C2: Object | D2: July | E2: Aug | F2: Sept | G2: Oct | H2: Nov | I2: Dec | J2: Jan | K2: Feb | L2: Mar | M2: Apr | N2: May | O2: June | P2: Sub-total | Q2: Accruals | R2: Total
B3: Actuals through Month of: | C3: N/A
A4: A | B4: Beginning Cash | C4: 9110 | D4: 0 | E4: =D53 -> 0 | F4: =E53 -> 0 | G4: 0 | H4: 0 | I4: 0 | J4: 0 | K4: 0 | L4: 0 | M4: 0 | N4: 0 | O4: 0 | P4: =D4 -> 0
A5: B | B5: Receipts
B6: LCFF Sources
B7: State Aid - Current Year | C7: 8011 | P7: =SUM(D7:O7) -> 0 | R7: =SUM(P7:Q7) -> 0
B8: Education Protection Account | C8: 8012 | P8: =SUM(D8:O8) -> 0 | R8: =SUM(P8:Q8) -> 0
B9: State Aid - Prior Years | C9: 8019 | P9: 0 | R9: 0
B10: Local In Lieu of Prop. Taxes | C10: 8096 | P10: 0 | R10: 0
B11: Federal Revenue (List) | C11: 8100-8299 | P11: 0 | R11: 0
B12: A | P12: 0 | R12: 0
B13: B | P13: 0 | R13: 0
B14: C | P14: 0 | R14: 0
B15: Other State Revenue (List) | C15: 8300-8599 | P15: 0 | R15: 0
B16: A | P16: 0 | R16: 0
B17: B | P17: 0 | R17: 0
B18: C | P18: 0 | R18: 0
B19: Other Local Revenue (List) | C19: 8600-8799 | P19: 0 | R19: 0
B20: A | P20: 0 | R20: 0
B21: B | P21: 0 | R21: 0
B22: C | P22: 0 | R22: 0
B23: Interfund Transfers In | C23: 8910-8929 | P23: 0 | R23: 0
B24: All Other Financing Sources | C24: 8930-8979 | P24: 0 | R24: 0
B25: Other Receipts/Non-Revenue | C25: TRANS | P25: 0 | R25: 0
B26: Total Receipts | D26: =SUM(D7:D25) -> 0 | E26: 0 | F26: 0 | G26: 0 | H26: 0 | I26: 0 | J26: 0 | K26: 0 | L26: 0 | M26: 0 | N26: 0 | O26: 0 | P26: 0 | Q26: 0 | R26: =SUM(P26:Q26) -> 0
A27: C | B27: Disbursements
B28: Certificated Salaries | C28: 1000-1999 | P28: =SUM(D28:O28) -> 0 | R28: =SUM(P28:Q28) -> 0
B29: Classified Salaries | C29: 2000-2999 | P29: =SUM(D29:O29) -> 0 | R29: =SUM(P29:Q29) -> 0
B30: Employee Benefits | C30: 3000-3999 | P30: 0 | R30: 0
B31: Books & Supplies | C31: 4000-4999 | P31: 0 | R31: 0
B32: Services | C32: 5000-5999 | P32: 0 | R32: 0
B33: Capital Outlay | C33: 6000-6599 | P33: 0 | R33: 0
B34: Other Outgo | C34: 7000-7499 | P34: 0 | R34: 0
B35: Interfund Transfers Out | C35: 7600-7629 | P35: 0 | R35: 0
B36: All Other Financing Uses | C36: 7630-7699 | P36: 0 | R36: 0
B37: Other Disbursements/Non-Exp. | P37: 0 | R37: 0
B38: Total Disbursements | D38: =SUM(D28:D37) -> 0 | E38: 0 | F38: 0 | G38: 0 | H38: 0 | I38: 0 | J38: 0 | K38: 0 | L38: 0 | M38: 0 | N38: 0 | O38: 0 | P38: 0 | Q38: 0 | R38: 0
A39: D | B39: Prior Year Transactions | C39: PY Amount
B40: Accounts Receivable-9200 | P40: =SUM(D40:O40) -> 0 | R40: =SUM(P40:Q40) -> 0
B41: Due From Grantor Govts.-9290 | P41: 0 | R41: =SUM(P41:Q41) -> 0
B42: Due From Other Funds-9310 | P42: 0 | R42: 0
B43: Prepaid Expense-9330 | P43: 0 | R43: 0
B44: Accounts Payable-9500 | P44: 0 | R44: 0
B45: Due To Grantor Govts.-9590 | P45: 0 | R45: 0
B46: Due to Other Funds-9610 | P46: 0 | R46: 0
B47: Due to Other Agencies-9620 | P47: 0 | R47: 0
B48: Current Loans/TRANs-9640 | P48: 0 | R48: 0
B49: Deferred Revenue-9650 | P49: 0 | R49: 0
B50: Total Pr. Yr. Transactions | C50: =SUM(C40:C43)-SUM(C44:C49) -> 0 | D50: 0 | E50: 0 | F50: 0 | G50: 0 | H50: 0 | I50: 0 | J50: 0 | K50: 0 | L50: 0 | M50: 0 | N50: 0 | O50: 0 | P50: 0 | Q50: 0 | R50: 0
A51: E | B51: Net Increase/Decrease (B-C+D) | D51: =D26-D38+D50 -> 0 | E51: 0 | F51: 0 | G51: 0 | H51: 0 | I51: 0 | J51: 0 | K51: 0 | L51: 0 | M51: 0 | N51: 0 | O51: 0 | P51: 0 | Q51: 0 | R51: =R26-R38+R50 -> 0
A53: F | B53: Ending Cash (A+E) | D53: =D4+D51 -> 0 | E53: 0 | F53: 0 | G53: 0 | H53: 0 | I53: 0 | J53: 0 | K53: 0 | L53: 0 | M53: 0 | N53: 0 | O53: 0 | P53: 0
A54: G | B54: Ending Cash plus Accruals | R54: =P53+Q51 -> 0

Sheet YEAR 2
A1: XYZ CHARTER SCHOOL | D1: YEAR 2 - PROJECTED CASH FLOW
C2: Object | D2: July | E2: Aug | F2: Sept | G2: Oct | H2: Nov | I2: Dec | J2: Jan | K2: Feb | L2: Mar | M2: Apr | N2: May | O2: June | P2: Sub-total | Q2: Accruals | R2: Total
B3: Actuals through Month of: | C3: N/A
A4: A | B4: Beginning Cash | C4: 9110 | D4: 0 | E4: =D53 -> 0 | F4: =E53 -> 0 | G4: 0 | H4: 0 | I4: 0 | J4: 0 | K4: 0 | L4: 0 | M4: 0 | N4: 0 | O4: 0 | P4: =D4 -> 0
A5: B | B5: Receipts
B6: LCFF Sources
B7: State Aid - Current Year | C7: 8011 | P7: =SUM(D7:O7) -> 0 | R7: =SUM(P7:Q7) -> 0
B8: Education Protection Account | C8: 8012 | P8: =SUM(D8:O8) -> 0 | R8: =SUM(P8:Q8) -> 0
B9: State Aid - Prior Years | C9: 8019 | P9: 0 | R9: 0
B10: Local In Lieu of Prop. Taxes | C10: 8096 | P10: 0 | R10: 0
B11: Federal Revenue (List) | C11: 8100-8299 | P11: 0 | R11: 0
B12: A | P12: 0 | R12: 0
B13: B | P13: 0 | R13: 0
B14: C | P14: 0 | R14: 0
B15: Other State Revenue (List) | C15: 8300-8599 | P15: 0 | R15: 0
B16: A | P16: 0 | R16: 0
B17: B | P17: 0 | R17: 0
B18: C | P18: 0 | R18: 0
B19: Other Local Revenue (List) | C19: 8600-8799 | P19: 0 | R19: 0
B20: A | P20: 0 | R20: 0
B21: B | P21: 0 | R21: 0
B22: C | P22: 0 | R22: 0
B23: Interfund Transfers In | C23: 8910-8929 | P23: 0 | R23: 0
B24: All Other Financing Sources | C24: 8930-8979 | P24: 0 | R24: 0
B25: Other Receipts/Non-Revenue | C25: TRANS | P25: 0 | R25: 0
B26: Total Receipts | D26: =SUM(D7:D25) -> 0 | E26: 0 | F26: 0 | G26: 0 | H26: 0 | I26: 0 | J26: 0 | K26: 0 | L26: 0 | M26: 0 | N26: 0 | O26: 0 | P26: 0 | Q26: 0 | R26: =SUM(P26:Q26) -> 0
A27: C | B27: Disbursements
B28: Certificated Salaries | C28: 1000-1999 | P28: =SUM(D28:O28) -> 0 | R28: =SUM(P28:Q28) -> 0
B29: Classified Salaries | C29: 2000-2999 | P29: =SUM(D29:O29) -> 0 | R29: =SUM(P29:Q29) -> 0
B30: Employee Benefits | C30: 3000-3999 | P30: 0 | R30: 0
B31: Books & Supplies | C31: 4000-4999 | P31: 0 | R31: 0
B32: Services | C32: 5000-5999 | P32: 0 | R32: 0
B33: Capital Outlay | C33: 6000-6599 | P33: 0 | R33: 0
B34: Other Outgo | C34: 7000-7499 | P34: 0 | R34: 0
B35: Interfund Transfers Out | C35: 7600-7629 | P35: 0 | R35: 0
B36: All Other Financing Uses | C36: 7630-7699 | P36: 0 | R36: 0
B37: Other Disbursements/Non-Exp. | P37: 0 | R37: 0
B38: Total Disbursements | D38: =SUM(D28:D37) -> 0 | E38: 0 | F38: 0 | G38: 0 | H38: 0 | I38: 0 | J38: 0 | K38: 0 | L38: 0 | M38: 0 | N38: 0 | O38: 0 | P38: 0 | Q38: 0 | R38: 0
A39: D | B39: Prior Year Transactions | C39: PY Amount
B40: Accounts Receivable-9200 | P40: =SUM(D40:O40) -> 0 | R40: =SUM(P40:Q40) -> 0
B41: Due From Grantor Govts.-9290 | P41: 0 | R41: =SUM(P41:Q41) -> 0
B42: Due From Other Funds-9310 | P42: 0 | R42: 0
B43: Prepaid Expense-9330 | P43: 0 | R43: 0
B44: Accounts Payable-9500 | P44: 0 | R44: 0
B45: Due To Grantor Govts.-9590 | P45: 0 | R45: 0
B46: Due to Other Funds-9610 | P46: 0 | R46: 0
B47: Due to Other Agencies-9620 | P47: 0 | R47: 0
B48: Current Loans/TRANs-9640 | P48: 0 | R48: 0
B49: Deferred Revenue-9650 | P49: 0 | R49: 0
B50: Total Pr. Yr. Transactions | C50: =SUM(C40:C43)-SUM(C44:C49) -> 0 | D50: 0 | E50: 0 | F50: 0 | G50: 0 | H50: 0 | I50: 0 | J50: 0 | K50: 0 | L50: 0 | M50: 0 | N50: 0 | O50: 0 | P50: 0 | Q50: 0 | R50: 0
A51: E | B51: Net Increase/Decrease (B-C+D) | D51: =D26-D38+D50 -> 0 | E51: 0 | F51: 0 | G51: 0 | H51: 0 | I51: 0 | J51: 0 | K51: 0 | L51: 0 | M51: 0 | N51: 0 | O51: 0 | P51: 0 | Q51: 0 | R51: =R26-R38+R50 -> 0
A53: F | B53: Ending Cash (A+E) | D53: =D4+D51 -> 0 | E53: 0 | F53: 0 | G53: 0 | H53: 0 | I53: 0 | J53: 0 | K53: 0 | L53: 0 | M53: 0 | N53: 0 | O53: 0 | P53: 0
A54: G | B54: Ending Cash plus Accruals | R54: =P53+Q51 -> 0

Sheet YEAR 3
A1: XYZ CHARTER SCHOOL | D1: YEAR 3 - PROJECTED CASH FLOW
C2: Object | D2: July | E2: Aug | F2: Sept | G2: Oct | H2: Nov | I2: Dec | J2: Jan | K2: Feb | L2: Mar | M2: Apr | N2: May | O2: June | P2: Sub-total | Q2: Accruals | R2: Total
B3: Actuals through Month of: | C3: N/A
A4: A | B4: Beginning Cash | C4: 9110 | D4: 0 | E4: =D53 -> 0 | F4: =E53 -> 0 | G4: 0 | H4: 0 | I4: 0 | J4: 0 | K4: 0 | L4: 0 | M4: 0 | N4: 0 | O4: 0 | P4: =D4 -> 0
A5: B | B5: Receipts
B6: LCFF Sources
B7: State Aid - Current Year | C7: 8011 | P7: =SUM(D7:O7) -> 0 | R7: =SUM(P7:Q7) -> 0
B8: Education Protection Account | C8: 8012 | P8: =SUM(D8:O8) -> 0 | R8: =SUM(P8:Q8) -> 0
B9: State Aid - Prior Years | C9: 8019 | P9: 0 | R9: 0
B10: Local In Lieu of Prop. Taxes | C10: 8096 | P10: 0 | R10: 0
B11: Federal Revenue (List) | C11: 8100-8299 | P11: 0 | R11: 0
B12: A | P12: 0 | R12: 0
B13: B | P13: 0 | R13: 0
B14: C | P14: 0 | R14: 0
B15: Other State Revenue (List) | C15: 8300-8599 | P15: 0 | R15: 0
B16: A | P16: 0 | R16: 0
B17: B | P17: 0 | R17: 0
B18: C | P18: 0 | R18: 0
B19: Other Local Revenue (List) | C19: 8600-8799 | P19: 0 | R19: 0
B20: A | P20: 0 | R20: 0
B21: B | P21: 0 | R21: 0
B22: C | P22: 0 | R22: 0
B23: Interfund Transfers In | C23: 8910-8929 | P23: 0 | R23: 0
B24: All Other Financing Sources | C24: 8930-8979 | P24: 0 | R24: 0
B25: Other Receipts/Non-Revenue | C25: TRANS | P25: 0 | R25: 0
B26: Total Receipts | D26: =SUM(D7:D25) -> 0 | E26: 0 | F26: 0 | G26: 0 | H26: 0 | I26: 0 | J26: 0 | K26: 0 | L26: 0 | M26: 0 | N26: 0 | O26: 0 | P26: 0 | Q26: 0 | R26: =SUM(P26:Q26) -> 0
A27: C | B27: Disbursements
B28: Certificated Salaries | C28: 1000-1999 | P28: =SUM(D28:O28) -> 0 | R28: =SUM(P28:Q28) -> 0
B29: Classified Salaries | C29: 2000-2999 | P29: =SUM(D29:O29) -> 0 | R29: =SUM(P29:Q29) -> 0
B30: Employee Benefits | C30: 3000-3999 | P30: 0 | R30: 0
B31: Books & Supplies | C31: 4000-4999 | P31: 0 | R31: 0
B32: Services | C32: 5000-5999 | P32: 0 | R32: 0
B33: Capital Outlay | C33: 6000-6599 | P33: 0 | R33: 0
B34: Other Outgo | C34: 7000-7499 | P34: 0 | R34: 0
B35: Interfund Transfers Out | C35: 7600-7629 | P35: 0 | R35: 0
B36: All Other Financing Uses | C36: 7630-7699 | P36: 0 | R36: 0
B37: Other Disbursements/Non-Exp. | P37: 0 | R37: 0
B38: Total Disbursements | D38: =SUM(D28:D37) -> 0 | E38: 0 | F38: 0 | G38: 0 | H38: 0 | I38: 0 | J38: 0 | K38: 0 | L38: 0 | M38: 0 | N38: 0 | O38: 0 | P38: 0 | Q38: 0 | R38: 0
A39: D | B39: Prior Year Transactions | C39: PY Amount
B40: Accounts Receivable-9200 | P40: =SUM(D40:O40) -> 0 | R40: =SUM(P40:Q40) -> 0
B41: Due From Grantor Govts.-9290 | P41: 0 | R41: =SUM(P41:Q41) -> 0
B42: Due From Other Funds-9310 | P42: 0 | R42: 0
B43: Prepaid Expense-9330 | P43: 0 | R43: 0
B44: Accounts Payable-9500 | P44: 0 | R44: 0
B45: Due To Grantor Govts.-9590 | P45: 0 | R45: 0
B46: Due to Other Funds-9610 | P46: 0 | R46: 0
B47: Due to Other Agencies-9620 | P47: 0 | R47: 0
B48: Current Loans/TRANs-9640 | P48: 0 | R48: 0
B49: Deferred Revenue-9650 | P49: 0 | R49: 0
B50: Total Pr. Yr. Transactions | C50: =SUM(C40:C43)-SUM(C44:C49) -> 0 | D50: 0 | E50: 0 | F50: 0 | G50: 0 | H50: 0 | I50: 0 | J50: 0 | K50: 0 | L50: 0 | M50: 0 | N50: 0 | O50: 0 | P50: 0 | Q50: 0 | R50: 0
A51: E | B51: Net Increase/Decrease (B-C+D) | D51: =D26-D38+D50 -> 0 | E51: 0 | F51: 0 | G51: 0 | H51: 0 | I51: 0 | J51: 0 | K51: 0 | L51: 0 | M51: 0 | N51: 0 | O51: 0 | P51: 0 | Q51: 0 | R51: =R26-R38+R50 -> 0
A53: F | B53: Ending Cash (A+E) | D53: =D4+D51 -> 0 | E53: 0 | F53: 0 | G53: 0 | H53: 0 | I53: 0 | J53: 0 | K53: 0 | L53: 0 | M53: 0 | N53: 0 | O53: 0 | P53: 0
A54: G | B54: Ending Cash plus Accruals | R54: =P53+Q51 -> 0

Sheet LHA Detail (hidden)
A1: ASPIRE PUBLIC SCHOOLS
A2: Langston Hughes Academy
A3: 5 YEAR PRO FORMA INCOME STATEMENT
B5: ENROLLMENT | C5: 144 | D5: 204 | E5: 264 | F5: 324 | G5: 384 | H5: 267
C7: FY07-08 | D7: FY08-09 | E7: FY09-10 | F7: FY10-11 | G7: FY11-12 | H7: FY12-13
C8: Projection | D8: Projection | E8: Projection | F8: Projection | G8: Projection | H8: Projection
A10: REVENUES
A11: State Aid Per Pupil Revenue | C11: 662298.48 | D11: 935725.68 | E11: 1282585.68 | F11: 1608464.88 | G11: 1934344.08 | H11: 2863460.76
A12: Federal Income | C12: 53595 | D12: 51609.6 | E12: 73113.6 | F12: 139617.6 | G12: 116121.6 | H12: 212625.6
A13: CDE Grant | C13: 0 | D13: 180000 | E13: 180000 | F13: 0 | G13: 0 | H13: 0
A14: Categorical Block Grant | C14: 67897.6 | D14: 91021.6 | E14: 114145.6 | F14: 137269.6 | G14: 160393.6 | H14: 235071.4
A15: Other State Revenue | C15: 76044.32 | D15: 83771.12 | E15: 183997.92 | F15: 191724.72 | G15: 199451.52 | H15: 204628.98
A16: Donations | C16: 0 | D16: 0 | E16: 0 | F16: 0 | G16: 0 | H16: 0
A17: In-lieu Tax Revenue | C17: 133600.32 | D17: 189267.12 | E17: 244933.92 | F17: 300600.72 | G17: 356267.52 | H17: 548317.98
A18: Other Local Revenue | C18: 0 | D18: 0 | E18: 0 | F18: 0 | G18: 0 | H18: 0
A19: Interfund Transfers In | C19: 0 | D19: 0 | E19: 0 | F19: 0 | G19: 0 | H19: 0
B20: TOTAL REVENUES | C20: =SUM(C11:C19) -> 993435.72 | D20: 1531395.12 | E20: 2078776.72 | F20: 2377677.52 | G20: 2766578.32 | H20: 4064104.72
A22: EXPENSES
A23: Personnel
B24: Certificated | C24: 379600 | D24: 597750 | E24: 807450 | F24: 1041700 | G24: 1253400 | H24: 1248400
B25: Classified | C25: 114447 | D25: 124447 | E25: 212812 | F25: 222812 | G25: 232812 | H25: 232812
B26: Benefits | C26: 114202.095 | D26: 167002.445 | E26: 240118.6259 | F26: 299935.0759 | G26: 352019.6359 | H26: 280805.8359
B27: Total Personnel | C27: =SUM(C24:C26) -> 608249.095 | D27: 889199.445 | E27: 1260380.626 | F27: 1564447.076 | G27: 1838231.636 | H27: 1762017.836
A29: Books & Supplies
A30: Books | C30: 18750 | D30: 25500 | E30: 33000 | F30: 40500 | G30: 48000 | H30: 73875
A31: Materials/Supplies | C31: 38371 | D31: 46768.44 | E31: 73800.04 | F31: 92771.64 | G31: 106743.24 | H31: 139945.26
A32: Food Services | C32: 5000 | D32: 2000 | E32: 2000 | F32: 2000 | G32: 2000 | H32: 95000
B33: Tot Books/Supplies | C33: =SUM(C30:C32) -> 62121 | D33: 74268.44 | E33: 108800.04 | F33: 135271.64 | G33: 156743.24 | H33: 308820.26
A35: Services & Other Operating Expenses
A36: Travel and Conference | C36: 14240 | D36: 9000 | E36: 13000 | F36: 18000 | G36: 22000 | H36: 17600
A37: Dues & Subscriptions | C37: 500 | D37: 500 | E37: 500 | F37: 500 | G37: 500 | H37: 500
A38: Insurance | C38: 2736 | D38: 3876 | E38: 5016 | F38: 6156 | G38: 7296 | H38: 11229
A39: PG&E | C39: 49968 | D39: 70788 | E39: 91608 | F39: 112428 | G39: 133248 | H39: 205077
A40: Other Utilities | C40: 0 | D40: 0 | E40: 0 | F40: 0 | G40: 0 | H40: 0
A41: Rent | C41: 10000 | D41: 12500 | E41: 15625 | F41: 15625 | G41: 15625 | H41: 115200
A42: Rent - Furn/Equip | C42: 0 | D42: 0 | E42: 0 | F42: 0 | G42: 0 | H42: 0
A43: Repairs & Maint | C43: 5000 | D43: 0 | E43: 0 | F43: 0 | G43: 0 | H43: 0
A44: Architect Fees | C44: 0 | D44: 0 | E44: 0 | F44: 0 | G44: 0 | H44: 0
A45: Educ Consultant | C45: 18000 | D45: 25500 | E45: 33000 | F45: 40500 | G45: 48000 | H45: 73875
A46: Facilities Contractor | C46: 28080 | D46: 39780 | E46: 51480 | F46: 63180 | G46: 74880 | H46: 2340
A47: Other Consultants | C47: 0 | D47: 0 | E47: 0 | F47: 0 | G47: 0 | H47: 0
A48: Marketing/Advertisement | C48: 1000 | D48: 1000 | E48: 1000 | F48: 1000 | G48: 1000 | H48: 0
A49: Field Trip | C49: 2500 | D49: 5000 | E49: 5000 | F49: 5000 | G49: 5000 | H49: 5000
A50: Printing/Reprod | C50: 9200 | D50: 10920 | E50: 13856 | F50: 15072.8 | G50: 16654.64 | H50: 14654.64
A51: Fingerprinting | C51: 500 | D51: 500 | E51: 500 | F51: 500 | G51: 500 | H51: 500
A52: License & Permits | C52: 0 | D52: 0 | E52: 0 | F52: 0 | G52: 0 | H52: 0
A53: Transportation | C53: 0 | D53: 0 | E53: 0 | F53: 0 | G53: 0 | H53: 0
A54: Interest Expense | C54: 19589.33 | D54: 19589.33 | E54: 19589.33 | F54: 19589.33 | G54: 19589.33 | H54: 0
A55: Depreciation | C55: 74832 | D55: 74832 | E55: 74832 | F55: 74832 | G55: 74832 | H55: 74832
A56: Communications | C56: 15000 | D56: 15000 | E56: 15000 | F56: 15000 | G56: 15000 | H56: 13000
B57: Tot Services | C57: =SUM(C36:C56) -> 251145.33 | D57: 288785.33 | E57: 340006.33 | F57: 387383.13 | G57: 434124.97 | H57: 533807.64
D58: =+(D57-C57)/C57 -> 0.1498733821 | E58: =+(E57-D57)/D57 -> 0.1773670428 | F58: =+(F57-E57)/E57 -> 0.1393409352 | G58: =+(G57-F57)/F57 -> 0.1206604944
A59: Capital Outlay
A60: Site Improvements | C60: 0 | D60: 0 | E60: 0 | F60: 0 | G60: 0 | H60: 0
A61: Equipment | C61: 11000 | D61: 30000 | E61: 30000 | F61: 30000 | G61: 74000 | H61: 39600
B62: Tot Capital Outlay | C62: =SUM(C60:C61) -> 11000 | D62: 30000 | E62: 30000 | F62: 30000 | G62: 74000 | H62: 39600
A64: Other Expenses
A65: Facilities Allocation | C65: 33501 | D65: 33501 | E65: 33501 | F65: 33501 | G65: 33501 | H65: 33501
A66: Corp Admin(7%) | C66: 60519.1216 | D66: 85640.2456 | E66: 115901.6656 | F66: 144694.4296 | G66: 173487.1936 | H66: 265924.6702
A67: Dist Admin (1%) | C67: 8645.5888 | D67: 12234.3208 | E67: 16557.3808 | F67: 20670.6328 | G67: 24783.8848 | H67: 37989.2386
A68: Reserve (3%) | C68: 6437.7664 | D68: 10766.196 | E68: 12969.18 | F68: 12339.756 | G68: 12339.756 | H68: 51955.8174
A69: Interfund Transfers Out | C69: 0 | D69: 0 | E69: 0 | F69: 0 | G69: 0 | H69: 0
B70: Tot Other Activity | C70: =SUM(C65:C69) -> 109103.4768 | D70: 142141.7624 | E70: 178929.2264 | F70: 211205.8184 | G70: 244111.8344 | H70: 389370.7262
B72: TOTAL EXPENSES | C72: =+C27+C33+C57+C62+C70 -> 1041618.902 | D72: 1424394.977 | E72: 1918116.222 | F72: 2328307.664 | G72: 2747211.68 | H72: 3033616.462
A74: NET PROFIT (LOSS) | C74: =+C20-C72 -> -48183.18182 | D74: 107000.1426 | E74: 160660.4977 | F74: 49369.85568 | G74: 19366.63968 | H74: 1030488.258
